Cogmind - Beta 11 X8 @@@ ROGUE MODE // 2021.11.11 @ 14:39:28 Player: cptwinky Result: Destroyed by Striker with Compact Linear Accelerator Performance ------------- Evolutions (9) 4500 Regions Visited (22) 4400 Robots Destroyed (228) 1140 Value Destroyed (9931) 9931 Prototype IDs (54) 1080 Alien Tech Used (0) 0 Bonus (9140) 9140 TOTAL SCORE: 30191 Bonus ------- High Alert Combat Kills 974 Follower Combat Kills 2443 Entered Garrisons 400 Used RIF Installer 1000 Entered DSFs 500 Network Hubs Disabled 200 Aligned with FarCom 300 Met Zhirov 300 Built Enhanced Grunts 300 A7 Reached Mainframe 300 Met R17 at Cetus 500 Read Decrypted Archives 300 Met R17 at Research 2000 Friendly Fire -377 Cogmind --------- Core Integrity 0/1600 Matter 19/300 Energy 99/100 System Corruption 39% Temperature Cool (0) Movement Core (50) Location -1/Command Parts ------- > --- POWER (2) -------- (None) > --- PROPULSION (6) --- (None) > --- UTILITY (13) ----- (None) > --- WEAPON (4) ------- (None) > --- INVENTORY (5) ---- Light Particle Reactor Advanced Remote Datajack Shock Maul Peak State ------------ > --- POWER ------------ Antimatter Reactor Quantum Reactor > --- PROPULSION ------- Improved Heavy Treads Armored Heavy Treads Advanced Heavy Treads > --- UTILITY ---------- Advanced Cooling System Huge Storage Unit Experimental Optical Array Experimental Targeting Computer Improved Armor Integrity Analyzer Improved Kinecellerator Heavy Armor Plating Improved Medium Armor Plating Centrium Medium Armor Plating Centrium Medium Armor Plating Relay Coupler [Grunt] Splice Drone Bay > --- WEAPON ----------- Advanced Variable Charge Gun Railgun Railgun Railgun > --- INVENTORY -------- Light Quantum Reactor Improved Heavy Siege Treads Large Matter Pod Advanced Force Field Relay Coupler [NC] Relay Coupler [NC] Relay Coupler [Brawler] Relay Coupler [Sentry] Army-in-a-Box Nova Cannon Railgun Helical Railgun Advanced EMP Blaster Micro-nuke Launcher Improved Datajack Improved Remote Datajack Improved Remote Datajack Shock Maul [Rating: 176] Favorites ----------- Power Light Nuclear Core Engine Heavy Ion Engine Power Core Light Nuclear Core Reactor Quantum Reactor Propulsion Armored Treads Treads Armored Treads Leg Aluminum Leg Wheel Wheel Utility Huge Storage Unit Device Improved Cooling System Storage Huge Storage Unit Processor Experimental Targeting Computer Hackware Relay Coupler [NC] Protection Reactive Plating Weapon Beam Cannon Energy Gun Small Laser Energy Cannon Beam Cannon Ballistic Gun Improved KE Penetrator Launcher Mini Grenade Launcher Special Weapon Improved Remote Datajack Impact Weapon Heavy Mace Slashing Weapon Ripper Special Melee Weapon Improved Datajack Build | -11 -10 -10 -10 -9 -8 -8 -8 -8 -8 -8 -6 -6 -5 -5 -5 -5 -5 -4 -3 -2 -1 -1 ------- Run | Scr Mat Min Exi Min Mat Gar Mat Sto Gar Rec Fac DSF Fac Ext Cet Arc Hub Fac Res Res Acc Com Slots Evolved 18 | . . . . . 4 . . . . . 4 . 2 . . . . 2 2 2 2 . Power 1 | . . . . . . . . . . . . . 1 . . . . . . . . . Propulsion 4 | . . . . . 1 . . . . . 1 . . . . . . 2 . . . . Utility 11 | . . . . . 3 . . . . . 2 . . . . . . . 2 2 2 . Weapon 2 | . . . . . . . . . . . 1 . 1 . . . . . . . . . Parts Attached 271 | 2 10 2 2 6 28 12 4 18 13 2 4 16 6 14 11 . 14 22 23 24 21 17 Power 16 | . 1 . . . 2 . 1 2 1 . . . 1 1 1 . . 1 2 2 1 . Engine 7 | . . . . . 1 . . 2 1 . . . 1 1 1 . . . . . . . Core 3 | . 1 . . . 1 . 1 . . . . . . . . . . . . . . . Reactor 6 | . . . . . . . . . . . . . . . . . . 1 2 2 1 . Propulsion 34 | 2 2 . 1 2 4 . . 4 1 1 1 1 . . 2 . . 2 5 2 1 3 Treads 26 | 2 2 . 1 . 3 . . 2 . 1 . 1 . . 2 . . 2 5 2 1 2 Leg . | . . . . . . . . . . . . . . . . . . . . . . . Wheel 7 | . . . . 2 1 . . 2 1 . 1 . . . . . . . . . . . Hover . | . . . . . . . . . . . . . . . . . . . . . . . Flight 1 | . . . . . . . . . . . . . . . . . . . . . . 1 Utility 71 | . 4 2 1 . 8 4 1 2 1 . 1 8 1 3 4 . 2 6 5 8 6 4 Device 30 | . 2 2 . . 3 2 . 2 . . . 4 1 2 2 . . 1 2 3 2 2 Storage 3 | . 2 . 1 . . . . . . . . . . . . . . . . . . . Processor 6 | . . . . . . . . . 1 . . . . . . . . 1 1 2 . 1 Hackware 9 | . . . . . . 1 1 . . . . 2 . 1 . . 1 . . . 2 1 Protection 23 | . . . . . 5 1 . . . . 1 2 . . 2 . 1 4 2 3 2 . Artifact . | . . . . . . . . . . . . . . . . . . . . . . . Weapon 150 | . 3 . . 4 14 8 2 10 10 1 2 7 4 10 4 . 12 13 11 12 13 10 Energy Gun 5 | . . . . . . . . . . . . . . . 1 . 1 . 1 . 1 1 Energy Cannon 35 | . 2 . . 2 7 4 1 5 6 1 . . . . . . . . . 4 2 1 Ballistic Gun 56 | . 1 . . . 1 . . . . . 1 5 2 7 3 . 5 8 5 6 6 6 Ballistic Cannon . | . . . . . . . . . . . . . . . . . . . . . . . Launcher 21 | . . . . 1 3 2 . 2 3 . . 1 1 . . . 2 1 2 . 2 1 Special Weapon 9 | . . . . 1 . . . . . . . . . . . . 4 2 1 . 1 . Impact Weapon 14 | . . . . . 3 1 1 1 1 . 1 . 1 1 . . . 1 1 2 . . Slashing Weapon 1 | . . . . . . . . . . . . . . 1 . . . . . . . . Piercing Weapon . | . . . . . . . . . . . . . . . . . . . . . . . Special Melee Weapon 9 | . . . . . . 1 . 2 . . . 1 . 1 . . . 1 1 . 1 1 Unidentified Prototypes 7 | . . 1 . . 1 . . . 1 . . . . . 4 . . . . . . . Corrupted Parts 1 | . . . . . . . . . 1 . . . . . . . . . . . . . System Corruption 12 | . . . . . . . . . 12 . . . . . . . . . . . . . Parts Lost 45 | . . . . . 3 1 . 4 . . . 1 . . . . 1 4 . 4 5 22 Power 7 | . . . . . 2 . . . . . . . . . . . . 2 . 1 1 1 Propulsion 9 | . . . . . . . . 3 . . . . . . . . . . . . . 6 Utility 19 | . . . . . 1 . . 1 . . . 1 . . . . 1 2 . 2 3 8 Weapon 10 | . . . . . . 1 . . . . . . . . . . . . . 1 1 7 Highest Loss Streak 12 | . . . . . 2 1 . 1 . . . 1 . . . . 1 3 . 2 2 12 Average Slot Usage (%) 91 | . 98 99 100 100 93 100 100 97 99 100 88 91 88 88 86 82 82 77 86 86 81 59 Engine 5 | . 3 . . . 5 9 7 6 9 9 6 6 11 11 11 11 11 9 . . . . Core 3 | . 10 14 14 14 3 . 1 2 . . . . . . . . . . . . . . Reactor 1 | . . . . . . . . . . . . . . . . . . . 5 7 8 5 Treads 14 | . 28 28 28 8 9 9 9 14 17 9 6 6 5 5 6 11 11 15 17 18 13 8 Wheel 8 | . . . . 19 18 18 18 9 9 18 20 20 17 17 12 . . . . . . . Device 12 | . 12 13 14 14 13 16 9 13 18 18 13 13 5 3 8 17 13 9 9 9 10 7 Storage 8 | . 14 14 14 14 9 9 9 9 9 9 6 6 5 5 5 5 5 5 4 4 4 3 Processor 3 | . . . . . . . . . 8 9 6 6 5 5 5 5 5 5 9 13 12 12 Hackware 2 | . . . . . . 1 9 8 . . . . . 1 . . 2 5 3 . 4 5 Protection 9 | . . . . . 17 18 18 12 9 9 8 11 11 11 9 5 5 5 14 13 12 5 Energy Cannon 11 | . 11 28 28 23 17 17 11 17 17 18 13 8 . . . . . . . 1 1 1 Ballistic Gun 7 | . 8 . . . . . . . . . 5 10 19 22 23 23 21 20 18 15 12 8 Naked Turns 23 | . . . . . . . . . . . . . . . . . . . . . . 23 Heaviest Build 196 | 11 53 53 93 94 118 117 118 122 118 118 141 147 160 166 169 160 160 159 160 188 196 177 Greatest Support 235 | 40 40 40 40 40 20 20 20 40 28 28 38 38 38 38 160 160 160 235 235 215 210 205 Greatest Overweight (x) 11 | . 1 1 2 9 5 5 5 11 7 4 3 3 4 4 4 . . . . . . 3 Average Overweight (x) 2 | . . 1 1 4 4 5 5 5 6 4 3 3 4 4 2 . . . . . . . Largest Inventory Capacity 25 | 8 20 20 25 25 25 25 25 25 25 25 25 25 25 25 25 25 25 25 25 25 25 25 Average Capacity 23 | 8 14 20 22 25 25 25 25 25 25 25 25 25 25 25 25 25 25 25 25 25 25 20 Most Carried 25 | 6 20 20 24 25 25 25 25 25 25 25 25 25 25 25 25 24 24 25 25 25 25 25 Average Carried 22 | 6 12 19 21 24 23 24 24 24 24 24 23 23 24 24 24 24 23 24 23 24 24 17 Final Capacity 25 | 8 20 20 25 25 25 25 25 25 25 25 25 25 25 25 25 25 25 25 25 25 25 5 Final Carried 25 | 6 20 20 24 25 25 25 25 25 25 25 23 25 25 25 24 24 22 23 25 25 23 3 Class Distribution -------------------- 55% | Mutant 20% | Scavenger-Tank 6% | Bothacker-Mutant 5% | Scavenger-Mutant Dominant Class ---------------- Mutant | -10/Materials Mutant | -10/Mines Mutant | -10/Exiles Mutant | -9/Mines Mutant | -8/Materials Mutant | -8/Garrison Mutant | -8/Materials Mutant | -8/Storage Mutant | -8/Garrison Commander-Mutant | -8/Recycling Commander-Skirmisher | -6/Factory Scavenger-Tank | -6/DSF Scavenger-Mutant | -5/Factory Scavenger-Tank | -5/Extension Commander-Tank | -5/Cetus Commander-Gunner | -5/Archives Scavenger-Gunner | -5/Hub_04(d) Scavenger-Tank | -4/Factory Scavenger-Tank | -3/Research Scavenger-Tank | -2/Research Bothacker-Mutant | -1/Access Mutant | -1/Command Resources | -11 -10 -10 -10 -9 -8 -8 -8 -8 -8 -8 -6 -6 -5 -5 -5 -5 -5 -4 -3 -2 -1 -1 ----------- Run | Scr Mat Min Exi Min Mat Gar Mat Sto Gar Rec Fac DSF Fac Ext Cet Arc Hub Fac Res Res Acc Com Matter Collected 6296 | 200 364 12 18 81 312 285 . 263 190 65 . 269 69 359 164 . 441 792 404 509 888 611 Remotely . | . . . . . . . . . . . . . . . . . . . . . . . Salvage Created 9939 | . 693 154 . 23 916 370 . 1283 579 52 . 273 69 114 . . 853 1190 427 1113 731 1099 Parts 495 | . 43 17 . 3 38 26 . 64 32 1 . 9 9 4 . . 47 51 16 42 41 52 Haulers Intercepted 7 | . 2 . . . 1 . . 4 . . . . . . . . . . . . . . Recyclers Shooed 5 | . . . . . . . . . . . . . . . . . . 1 . 2 2 . Parts Field Recycled . | . . . . . . . . . . . . . . . . . . . . . . . Retrieved Matter . | . . . . . . . . . . . . . . . . . . . . . . . Parts Self-Destructed . | . . . . . . . . . . . . . . . . . . . . . . . Prevented . | . . . . . . . . . . . . . . . . . . . . . . . Kills | -11 -10 -10 -10 -9 -8 -8 -8 -8 -8 -8 -6 -6 -5 -5 -5 -5 -5 -4 -3 -2 -1 -1 ------- Run | Scr Mat Min Exi Min Mat Gar Mat Sto Gar Rec Fac DSF Fac Ext Cet Arc Hub Fac Res Res Acc Com Combat Hostiles Destroyed 184 | . 13 5 . 3 18 19 . 21 14 . . 7 3 2 . . 12 16 7 19 12 13 Melee 1 | . . . . . . 1 . . . . . . . . . . . . . . . . Guns 73 | . 9 . . . . . . . . . . 2 2 2 . . 9 15 1 19 5 9 Cannons 46 | . 3 5 . . 10 4 . 15 5 . . 3 . . . . . . . . . 1 AOE 57 | . . . . 3 7 14 . 5 9 . . 2 1 . . . 3 . 4 . 6 3 Classes Destroyed 18 | . 5 1 . . 5 2 . 3 . . . 1 . . . . . 1 . . . . Worker 9 | . . . . . . . . 5 . . . . . . . . . . . . 3 1 Builder 10 | . . . . . 1 . . 1 . . . . . . . . 4 . 1 . 3 . Tunneler 4 | . . 1 . . . . . . . . . . . . . . . 2 . . 1 . Hauler 7 | . 2 . . . 1 . . 4 . . . . . . . . . . . . . . Recycler 10 | . 1 . . . 3 . . 1 . 1 . . . . . . . . . . 2 2 Operator 2 | . 2 . . . . . . . . . . . . . . . . . . . . . Watcher 2 | . . . . . . . . 1 . . . . . . . . 1 . . . . . Swarmer 60 | . 3 3 . 3 3 8 . 4 9 . . 4 3 1 . . . . 4 11 4 . Cutter 4 | . . . . . . 2 . . . . . . . . . . . . . . . 2 Grunt 58 | . 10 2 . . 8 7 . 11 2 . . . . . . . 9 8 . . . 1 Brawler 2 | . . . . . . . . 1 . . . . . . . . . 1 . . . . Duelist 2 | . . . . . . 2 . . . . . . . . . . . . . . . . Sentry 18 | . . . . . 3 . . 5 2 . . . . 1 . . . . 1 4 2 . Specialist 4 | . . . . . 2 . . . . . . 2 . . . . . . . . . . Hunter 14 | . . . . . 1 . . . 1 . . . . . . . 1 . 2 2 5 2 Programmer 17 | . . . . . . . . . . . . 1 . . . . 2 6 . 1 1 6 Heavy 2 | . . . . . 1 . . . . . . . . . . . . . . 1 . . Behemoth 1 | . . . . . . . . . . . . . . . . . . 1 . . . . Combat Programmer 2 | . . . . . . . . . . . . . . . . . . . . . . 2 Best Kill Streak 13 | . 3 3 . 3 8 12 . 10 5 1 . 4 2 1 . . 7 4 4 6 13 7 Combat Bots Only 12 | . 3 3 . 3 7 12 . 4 5 . . 4 2 1 . . 5 4 4 6 7 5 Max Kills in Single Turn 4 | . 2 1 . 3 2 4 . 4 2 1 . 2 1 1 . . 2 2 1 2 3 2 Gunslinging 1 | . . . . . . . . . . . . . . . . . . . . 1 . . Exploded 4 | . . . . 3 2 4 . 2 2 . . 2 1 . . . 2 . 1 . 2 2 Melee 1 | . . . . . . 1 . . . . . . . . . . . . . . . . Uniques/NPCs Destroyed . | . . . . . . . . . . . . . . . . . . . . . . . Combat | -11 -10 -10 -10 -9 -8 -8 -8 -8 -8 -8 -6 -6 -5 -5 -5 -5 -5 -4 -3 -2 -1 -1 -------- Run | Scr Mat Min Exi Min Mat Gar Mat Sto Gar Rec Fac DSF Fac Ext Cet Arc Hub Fac Res Res Acc Com Damage Taken 21218 | . 538 93 . 17 700 324 . 784 343 . . 593 140 412 40 . 929 2252 414 1947 2318 9374 Core 2279 | . 99 10 . 8 65 15 . 91 47 . . 60 . 20 . . . 140 . 94 61 1569 Absorbed by Shields 2019 | . . . . . . . . . 21 . . . . 74 38 . 329 406 . 239 390 522 Reduced by Siege Mode 1271 | . . . . . . . . . . . . . . . . . . 82 25 82 89 993 Core Remaining (%) 85 | 100 . . . 53 . . . . . 60 . 92 . . . . 98 87 100 93 . . Volleys Fired 516 | . 48 9 . 2 63 33 . 72 26 2 1 14 8 5 2 1 31 43 16 40 38 62 Largest 4 | . 2 2 . 1 2 2 . 2 2 2 1 3 3 4 4 4 4 4 4 4 4 4 Hottest 240 | . 120 120 . 100 120 120 . 150 150 150 75 173 96 126 240 136 240 136 136 136 216 218 Shots Fired 1180 | . 96 18 . 2 106 44 . 139 43 5 1 40 18 20 5 4 85 141 22 124 99 168 Gun 706 | . 66 . . . 12 . . . . . . 29 15 20 5 4 75 133 11 114 79 143 Cannon 399 | . 30 18 . . 87 33 . 135 36 5 1 10 . . . . . . . 10 11 23 Launcher 61 | . . . . 1 7 11 . 4 7 . . 1 3 . . . 5 3 9 . 8 2 Special 14 | . . . . 1 . . . . . . . . . . . . 5 5 2 . 1 . Kinetic 657 | . 33 . . . 12 . . . . . . 29 15 20 4 4 74 133 8 114 68 143 Thermal 449 | . 63 18 . 1 87 33 . 135 36 5 1 10 . . 1 . 1 . 3 10 22 23 Explosive 42 | . . . . 1 7 11 . 2 7 . . 1 3 . . . . . . . 8 2 Electromagnetic 19 | . . . . . . . . 2 . . . . . . . . 5 3 9 . . . Robot Hit Streak 55 | . 12 4 . . 8 10 . 15 13 14 . 6 4 2 3 3 16 55 14 22 27 45 Robot Miss Streak 7 | . 3 1 . 1 3 1 . 7 2 2 . 3 3 3 2 1 3 3 4 2 2 2 Penetration Max 1 | . . . . . . . . . . . . . 1 . . . 1 1 . 1 1 1 Secondary Targets 13 | . . . . . . . . . . . . . 1 . . . 1 1 . 6 3 1 Max Gunslinging Chain 1 | . . . . . . . . . . . . . 1 . . . 1 1 . 1 1 1 Shots Hit Robots 811 | . 64 8 . . 59 25 . 89 37 2 . 25 10 13 2 3 59 109 16 87 71 132 Core Hits 450 | . 27 6 . 3 40 31 . 45 18 1 . 11 8 5 2 . 40 44 15 50 51 53 Critical Kills 22 | . 2 . . . . . . 1 . . . . 1 1 . . 4 8 . 1 4 . Critical Parts Destroyed 34 | . 1 . . . . . . . . . . 3 1 . . 1 9 8 . 9 . 2 Critical Strikes 59 | . 3 . . . . . . 1 . . . 3 2 1 . 1 13 18 . 10 5 2 Meltdown 3 | . 1 . . . . . . 1 . . . . . . . . . . . . 1 . Destroy 56 | . 2 . . . . . . . . . . 3 2 1 . 1 13 18 . 10 4 2 Melee Attacks 68 | . . . . . 7 6 1 9 10 . 5 1 1 6 . . . 1 11 6 3 1 Impact 54 | . . . . . 7 2 1 9 10 . 5 . 1 3 . . . 1 9 6 . . Slashing 2 | . . . . . . . . . . . . . . 2 . . . . . . . . Piercing . | . . . . . . . . . . . . . . . . . . . . . . . Sneak Attacks 11 | . . . . . . 3 . . . . . . . 3 . . . . 2 . 2 1 Combat Hostiles 5 | . . . . . . 3 . . . . . . . 2 . . . . . . . . Follow-up Attacks . | . . . . . . . . . . . . . . . . . . . . . . . Damage Inflicted 29750 | . 904 162 . 136 2024 1515 . 3137 2168 50 . 471 234 378 47 64 2121 3142 825 2783 5033 4556 Guns 13487 | . 577 . . . . . . . . . . 175 154 141 47 64 1423 2726 223 2702 2036 3219 Cannons 5832 | . 314 162 . . 1067 320 . 2415 607 50 . 131 . . . . . . . . 115 651 Explosions 9058 | . . . . 136 957 1041 . 693 816 . . 165 80 . . . 698 361 602 . 2847 662 Melee 1136 | . . . . . . 154 . . 745 . . . . 237 . . . . . . . . Ramming 237 | . 13 . . . . . . 29 . . . . . . . . . 55 . 81 35 24 Kinetic 12960 | . 318 . . . . . . . . . . 175 154 141 47 64 1423 2726 223 2702 1768 3219 Thermal 6736 | . 573 162 . . 1067 320 . 2420 607 50 . 131 . . . . 372 . . . 383 651 Explosive 7212 | . . . . 136 957 1041 . 508 816 . . 165 80 . . . . . . . 2847 662 Electromagnetic 1469 | . . . . . . . . 180 . . . . . . . . 326 361 602 . . . Impact 1095 | . . . . . . 154 . . 745 . . . . 196 . . . . . . . . Slashing 41 | . . . . . . . . . . . . . . 41 . . . . . . . . Piercing . | . . . . . . . . . . . . . . . . . . . . . . . Highest Corruption 39 | . . . . . . . . 2 14 14 . . . . . . 4 5 . . 4 39 Average Corruption 5 | . . . . . . . . 1 2 14 . . . . . . 1 2 . . 3 17 Corruption Purged . | . . . . . . . . . . . . . . . . . . . . . . . Effects 91 | . . . . . . . . 2 12 19 . . . . . . 1 13 . . 3 41 Message Errors 26 | . . . . . . . . 2 8 5 . . . . . . . 6 . . . 5 Matter Fused 21 | . . . . . . . . . . 5 . . . . . . 1 2 . . 2 11 Heat Flow Errors 7 | . . . . . . . . . 3 2 . . . . . . . . . . 1 1 Energy Discharges 7 | . . . . . . . . . 1 1 . . . . . . . 1 . . . 4 Parts Rejected 1 | . . . . . . . . . . 1 . . . . . . . . . . . . Data Loss (minor) 7 | . . . . . . . . . . 3 . . . . . . . 1 . . . 3 Data Loss (major) 3 | . . . . . . . . . . . . . . . . . . . . . . 3 Misfires 2 | . . . . . . . . . . 1 . . . . . . . . . . . 1 Alerts 1 | . . . . . . . . . . . . . . . . . . . . . . 1 Misdirections 9 | . . . . . . . . . . 1 . . . . . . . . . . . 8 Weapon Failures 7 | . . . . . . . . . . . . . . . . . . 3 . . . 4 Overload Shots 2 | . . . . . . . . . . . . . . . 1 . 1 . . . . . Overflow Damage 639 | . . . . 4 36 99 . 79 149 . . . . 4 . . 12 20 7 . 171 58 Projectiles 157 | . . . . . 33 15 . 61 26 . . . . . . . . . . . . 22 Explosions 316 | . . . . 4 3 42 . 18 28 . . . . . . . 12 . 7 . 166 36 Melee 166 | . . . . . . 42 . . 95 . . . . 4 . . . 20 . . 5 . Knockbacks 2 | . . . . . . . . 1 . . . . . . . . . . . 1 . . Impact 2 | . . . . . . . . 1 . . . . . . . . . . . 1 . . Kinetic . | . . . . . . . . . . . . . . . . . . . . . . . Secondary . | . . . . . . . . . . . . . . . . . . . . . . . Self-Inflicted Damage 502 | . . . . . 12 86 . 14 93 . . . 14 . . . 46 58 . . . 179 Shots 16 | . . . . . 2 2 . . 5 . . . 1 . . . 1 3 . . . 2 Rammed 27 | . 2 . . . . . . 1 . . . . . . . . . 3 . 2 3 16 Targets Rammed 28 | . 2 1 . . . . . 1 . . . . . . . . . 3 . 2 3 16 Kicked . | . . . . . . . . . . . . . . . . . . . . . . . Crushed 1 | . . 1 . . . . . . . . . . . . . . . . . . . . Highest Temperature 279 | . 66 27 . . 105 . . 279 140 195 . . . 182 172 9 152 35 . 88 239 127 Average Temperature 51 | . 29 20 . . 26 . . 80 51 52 . . . 91 61 6 21 10 . 17 47 34 Received Heat Transfer 2382 | . 270 27 . . 171 45 . 459 108 . . . . 48 . . 266 621 . 72 25 270 Siege Activations 22 | . . . . . . . . . . . . . . . . . 3 9 1 4 2 3 Total Turns 500 | . . . . . . . . . . . . . . . . . 22 186 11 67 53 161 Longest Duration 75 | . . . . . . . . . . . . . . . . . 9 39 11 31 38 75 Robots Corrupted 4 | . . . . . . . . . . . . . . . . . . 1 3 . . . Combat Hostiles 3 | . . . . . . . . . . . . . . . . . . 1 2 . . . Parts Fried 14 | . . . . . . . . . 2 . . . . . . . . 2 10 . . . Impact Corruptions 7 | . . . . . . 1 . . 3 . . . . 1 . . . 1 . . 1 . Robots Melted 4 | . 1 . . . 1 . . 1 . . . . . . . . . . . . 1 . Combat Hostiles 4 | . 1 . . . 1 . . 1 . . . . . . . . . . . . 1 . Parts Melted 28 | . 8 . . . 10 2 . 5 1 . . . . . . . 1 . . . 1 . Heat Transferred 10429 | . 1266 333 . . 2220 666 . 3491 851 74 . 185 . . . . 400 . . . 444 499 Parts Sabotaged . | . . . . . . . . . . . . . . . . . . . . . . . Parts Stolen . | . . . . . . . . . . . . . . . . . . . . . . . Parts Stripped . | . . . . . . . . . . . . . . . . . . . . . . . Power Chain Reactions 10 | . . . . . . . . 1 . . . . . . . . 7 1 1 . . . Missiles Intercepted . | . . . . . . . . . . . . . . . . . . . . . . . Alert | -11 -10 -10 -10 -9 -8 -8 -8 -8 -8 -8 -6 -6 -5 -5 -5 -5 -5 -4 -3 -2 -1 -1 ------- Run | Scr Mat Min Exi Min Mat Gar Mat Sto Gar Rec Fac DSF Fac Ext Cet Arc Hub Fac Res Res Acc Com Peak Influence 991 | . 227 102 . 104 271 709 351 545 500 298 976 783 457 364 624 454 991 557 525 583 498 445 Initial 956 | . . 17 . . 8 108 345 84 62 225 956 683 410 223 203 249 144 466 286 195 292 143 Average 275 | . 69 33 . 7 86 525 304 205 352 193 970 701 388 191 441 332 715 429 429 378 272 209 Maximum Alert Level 3 | . 1 . . . 1 3 1 2 2 1 3 3 2 1 2 2 3 2 2 2 2 2 Low Security (%) 45 | 100 99 100 . 100 85 6 . 55 28 24 . . . 62 . . 8 . . 2 29 46 Level 1 27 | . . . . . 14 12 100 32 27 75 . . 18 37 63 67 12 36 45 64 61 40 Level 2 22 | . . . . . . 75 . 12 43 . . 49 81 . 36 32 3 63 54 33 8 12 Level 3 5 | . . . . . . 5 . . . . 100 50 . . . . 75 . . . . . Level 4 . | . . . . . . . . . . . . . . . . . . . . . . . Level 5 . | . . . . . . . . . . . . . . . . . . . . . . . High Security . | . . . . . . . . . . . . . . . . . . . . . . . Max Security . | . . . . . . . . . . . . . . . . . . . . . . . Squads Dispatched 60 | . 6 . . . 7 . . 7 . . . 1 2 . . . 6 5 9 3 6 8 Investigation 12 | . 2 . . . 2 . . 1 . . . . . . . . 1 . 3 . . 3 Extermination 10 | . . . . . . . . . . . . . 1 . . . 2 3 . 1 1 2 Reinforcement 31 | . 4 . . . 4 . . 3 . . . 1 1 . . . 2 2 5 2 4 3 Assault 1 | . . . . . . . . . . . . . . . . . 1 . . . . . Garrison 6 | . . . . . 1 . . 3 . . . . . . . . . . 1 . 1 . Intercept . | . . . . . . . . . . . . . . . . . . . . . . . Construction Impeded 5 | . . . . . . . . 2 . . . . . . . . . . 1 . 2 . Haulers Reinforced 4 | . . . . . . . . . . . . . . . . . 1 . 3 . . . Active Scanning Responses . | . . . . . . . . . . . . . . . . . . . . . . . Cargo Convoy Interrupts . | . . . . . . . . . . . . . . . . . . . . . . . Stealth | -11 -10 -10 -10 -9 -8 -8 -8 -8 -8 -8 -6 -6 -5 -5 -5 -5 -5 -4 -3 -2 -1 -1 --------- Run | Scr Mat Min Exi Min Mat Gar Mat Sto Gar Rec Fac DSF Fac Ext Cet Arc Hub Fac Res Res Acc Com Distress Signals 26 | . 1 . . . 2 . . 3 . . . . 1 1 2 . 3 . 8 2 1 2 Communications Jammed . | . . . . . . . . . . . . . . . . . . . . . . . Distress Signals . | . . . . . . . . . . . . . . . . . . . . . . . Times Spotted 355 | . 29 4 . 4 29 18 1 31 16 13 . 9 6 17 16 . 32 26 7 25 28 44 Peak Tracking Total 14 | . 5 2 . 4 6 3 1 4 5 3 . 4 5 4 10 . 8 5 4 6 7 14 Tactical Retreats 14 | . . . . . . 1 . 3 . . . . 1 . . . . 1 . 1 1 6 Traps | -11 -10 -10 -10 -9 -8 -8 -8 -8 -8 -8 -6 -6 -5 -5 -5 -5 -5 -4 -3 -2 -1 -1 ------- Run | Scr Mat Min Exi Min Mat Gar Mat Sto Gar Rec Fac DSF Fac Ext Cet Arc Hub Fac Res Res Acc Com Traps Triggered 19 | . . . . . 1 9 . . 1 . 2 . . 4 . . . . 1 . . 1 Indirectly 1 | . . . . . . . . . . . . . . . . . . . 1 . . . Trap Hack Attempts 32 | . . . . . . . . 28 . . . . . . . . . 4 . . . . Triggered . | . . . . . . . . . . . . . . . . . . . . . . . Disarmed . | . . . . . . . . . . . . . . . . . . . . . . . Reprogrammed 4 | . . . . . . . . 3 . . . . . . . . . 1 . . . . Reused 4 | . . . . . . . . 3 . . . . . . . . . 1 . . . . Traps Extracted . | . . . . . . . . . . . . . . . . . . . . . . . Installed . | . . . . . . . . . . . . . . . . . . . . . . . Triggered 4 | . . . . . . . . 3 . . . . . . . . . 1 . . . . Machines | -11 -10 -10 -10 -9 -8 -8 -8 -8 -8 -8 -6 -6 -5 -5 -5 -5 -5 -4 -3 -2 -1 -1 ---------- Run | Scr Mat Min Exi Min Mat Gar Mat Sto Gar Rec Fac DSF Fac Ext Cet Arc Hub Fac Res Res Acc Com Machines Disabled 26 | . . 1 . . . 2 . 4 3 . . 1 . 1 1 1 2 3 1 2 4 . Max in Single Turn 2 | . . 1 . . . 1 . 1 1 . . 1 . . 1 . 2 1 1 1 1 . Garrison Access 5 | . . . . . . . . . . . 1 . 1 . . . . . 1 1 1 . Garrison Relay 3 | . . . . . . 2 . . 1 . . . . . . . . . . . . . Network Hub 1 | . . . . . . . . . . . . . . . . . 1 . . . . . Machines Sabotaged . | . . . . . . . . . . . . . . . . . . . . . . . Garrisons Compromised . | . . . . . . . . . . . . . . . . . . . . . . . Overloaded Fab Kills . | . . . . . . . . . . . . . . . . . . . . . . . Hacking | -11 -10 -10 -10 -9 -8 -8 -8 -8 -8 -8 -6 -6 -5 -5 -5 -5 -5 -4 -3 -2 -1 -1 --------- Run | Scr Mat Min Exi Min Mat Gar Mat Sto Gar Rec Fac DSF Fac Ext Cet Arc Hub Fac Res Res Acc Com Machines Accessed 89 | . 7 1 2 . 10 . 4 9 . 6 4 . 4 8 2 1 1 6 5 4 8 7 Terminals 59 | . 5 . . . 6 . 4 7 . 4 2 . 3 8 2 . 1 2 3 2 5 5 Fabricators 2 | . . . . . . . . . . . . . . . . . . 1 . 1 . . Repair Stations 9 | . 1 . . . 1 . . 1 . . 1 . . . . . . 2 . . 2 1 Recycling Units 6 | . 1 . . . 1 . . . . 2 . . . . . . . . 1 . . 1 Scanalyzers 2 | . . . . . 1 . . . . . . . . . . . . 1 . . . . Garrison Access 7 | . . . . . 1 . . 1 . . 1 . 1 . . . . . 1 1 1 . Total Hacks 255 | . 23 1 2 . 33 . 11 25 . 13 8 . 8 9 4 18 4 24 16 10 31 15 Successful 137 | . 12 1 2 . 20 . 6 17 . 9 4 . 6 7 2 18 . 8 6 7 10 2 Failed 117 | . 10 . . . 13 . 5 8 . 4 4 . 2 2 2 . 4 16 10 3 21 13 Catastrophic 18 | . . . . . 1 . . 1 . . . . . 1 1 . 2 1 2 2 4 3 Database Lockouts 1 | . 1 . . . . . . . . . . . . . . . . . . . . . Manual 94 | . 12 . 1 . 18 . 7 6 . 9 3 . 3 1 1 . . 8 6 4 15 . Terminals 162 | . 16 . . . 20 . 11 19 . 9 4 . 6 9 4 . 4 5 11 6 27 11 Fabricators 8 | . . . . . . . . . . . . . . . . . . 6 . 2 . . Repair Stations 25 | . 3 . . . 2 . . 3 . . 2 . . . . . . 10 . . 2 3 Recycling Units 14 | . 4 . . . 2 . . . . 4 . . . . . . . . 3 . . 1 Scanalyzers 7 | . . . . . 4 . . . . . . . . . . . . 3 . . . . Garrison Access 18 | . . . . . 5 . . 3 . . 2 . 2 . . . . . 2 2 2 . Terminal Hacks 84 | . 6 1 2 . 11 . 3 11 . 5 1 . 3 7 2 18 . . 3 4 6 1 Record 21 | . . . 1 . . . . . . . . . . . 2 18 . . . . . . Robot Schematic 1 | . . . . . . . . . . 1 . . . . . . . . . . . . Robot Analysis 5 | . 1 . . . 4 . . . . . . . . . . . . . . . . . Prototype ID Bank 7 | . 2 . . . 2 . . . . 1 . . . . . . . . 1 1 . . Open Door 16 | . . 1 . . . . . 4 . . . . 1 7 . . . . . . 3 . Open DSF 1 | . . . . . . . . . . . 1 . . . . . . . . . . . Level Access Points 2 | . . . . . . . . . . . . . . . . . . . 1 1 . . Branch Access Points 2 | . 1 . . . . . 1 . . . . . . . . . . . . . . . Terminal Index 1 | . . . . . . . . . . . . . . . . . . . . . 1 . Unreport Threat 12 | . . . . . 2 . 1 3 . 2 . . 1 . . . . . . 1 2 . Locate Traps 4 | . 1 . . . . . . 1 . . . . . . . . . . 1 . . 1 Registered Components 1 | . . . . . . . . 1 . . . . . . . . . . . . . . Zone Layout 10 | . 1 . . . 3 . 1 2 . 1 . . 1 . . . . . . 1 . . EX-Prototype ID Bank 1 | . . . 1 . . . . . . . . . . . . . . . . . . . Fabricator Hacks . | . . . . . . . . . . . . . . . . . . . . . . . Repair Station Hacks 11 | . 2 . . . 2 . . 2 . . 1 . . . . . . 3 . . . 1 Scan Component 7 | . 1 . . . 1 . . 1 . . 1 . . . . . . 2 . . . 1 Repair 4 | . 1 . . . 1 . . 1 . . . . . . . . . 1 . . . . Recycling Unit Hacks 3 | . 1 . . . . . . . . 2 . . . . . . . . . . . . Retrieve Components 3 | . 1 . . . . . . . . 2 . . . . . . . . . . . . Scanalyzer 4 | . . . . . 2 . . . . . . . . . . . . 2 . . . . Insert Component 2 | . . . . . 1 . . . . . . . . . . . . 1 . . . . Analyze 2 | . . . . . 1 . . . . . . . . . . . . 1 . . . . Garrison Access Hacks 9 | . . . . . 1 . . 1 . . 1 . 2 . . . . . 1 1 2 . Unlock Access 2 | . . . . . 1 . . 1 . . . . . . . . . . . . . . Seal Access 5 | . . . . . . . . . . . 1 . 1 . . . . . 1 1 1 . Coupler Status 2 | . . . . . . . . . . . . . 1 . . . . . . . 1 . Unauthorized Hacks 26 | . 3 . . . 4 . 3 3 . 2 1 . 1 . . . . 3 2 2 2 . Terminals 15 | . 2 . . . 2 . 3 1 . . 1 . 1 . . . . 1 2 . 2 . Assimilate 2 | . . . . . . . 2 . . . . . . . . . . . . . . . Botnet 10 | . 1 . . . 2 . 1 1 . . 1 . 1 . . . . . 2 . 1 . Disrupt 3 | . 1 . . . . . . . . . . . . . . . . 1 . . 1 . Fabricators 4 | . . . . . . . . . . . . . . . . . . 2 . 2 . . Fabnet 2 | . . . . . . . . . . . . . . . . . . 1 . 1 . . Haulers 2 | . . . . . . . . . . . . . . . . . . 1 . 1 . . Repair Stations 1 | . . . . . . . . 1 . . . . . . . . . . . . . . Mechanics 1 | . . . . . . . . 1 . . . . . . . . . . . . . . Recycling Units 4 | . 1 . . . 1 . . . . 2 . . . . . . . . . . . . Mask 1 | . . . . . 1 . . . . . . . . . . . . . . . . . Tunnel 3 | . 1 . . . . . . . . 2 . . . . . . . . . . . . Scanalyzers . | . . . . . . . . . . . . . . . . . . . . . . . Garrison Access 2 | . . . . . 1 . . 1 . . . . . . . . . . . . . . Reprogram 2 | . . . . . 1 . . 1 . . . . . . . . . . . . . . Data Cores Recovered . | . . . . . . . . . . . . . . . . . . . . . . . Used . | . . . . . . . . . . . . . . . . . . . . . . . Hacking Detections 65 | . 6 . . . 9 . 3 5 . 3 4 . 3 2 3 . 1 4 5 3 7 7 Full Trace Events 6 | . 1 . . . . . . 1 . . . . . . . . 1 . 1 . . 2 Feedback Events 3 | . . . . . . . . 2 . . . . . . . . 1 . . . . . Corruption 2 | . . . . . . . . 1 . . . . . . . . 1 . . . . . Hackware Fried 1 | . . . . . . . . 1 . . . . . . . . . . . . . . Feedback Blocked . | . . . . . . . . . . . . . . . . . . . . . . . Robot Schematics Acquired 1 | . . . . . . . . . . 1 . . . . . . . . . . . . Robots Built . | . . . . . . . . . . . . . . . . . . . . . . . Authchips . | . . . . . . . . . . . . . . . . . . . . . . . Time . | . . . . . . . . . . . . . . . . . . . . . . . Total Robot Build Rating . | . . . . . . . . . . . . . . . . . . . . . . . Part Schematics Acquired 2 | . . . . . 1 . . . . . . . . . . . . 1 . . . . Parts Built . | . . . . . . . . . . . . . . . . . . . . . . . Authchips . | . . . . . . . . . . . . . . . . . . . . . . . Time . | . . . . . . . . . . . . . . . . . . . . . . . Total Part Build Rating . | . . . . . . . . . . . . . . . . . . . . . . . Parts Repaired 4 | . 1 . . . 1 . . 1 . . . . . . . . . 1 . . . . Time 89 | . 26 . . . 22 . . 19 . . . . . . . . . 22 . . . . Parts Recycled . | . . . . . . . . . . . . . . . . . . . . . . . Recycled Matter . | . . . . . . . . . . . . . . . . . . . . . . . Retrieved Matter . | . . . . . . . . . . . . . . . . . . . . . . . Retrieved Components 13 | . 9 . . . . . . . . 4 . . . . . . . . . . . . Parts Scanalyzed 2 | . . . . . 1 . . . . . . . . . . . . 1 . . . . Part Schematics Acquired 2 | . . . . . 1 . . . . . . . . . . . . 1 . . . . Parts Damaged . | . . . . . . . . . . . . . . . . . . . . . . . Bothacking | -11 -10 -10 -10 -9 -8 -8 -8 -8 -8 -8 -6 -6 -5 -5 -5 -5 -5 -4 -3 -2 -1 -1 ------------ Run | Scr Mat Min Exi Min Mat Gar Mat Sto Gar Rec Fac DSF Fac Ext Cet Arc Hub Fac Res Res Acc Com Used RIF Installer 2 | . . . . . . 1 . . 1 . . . . . . . . . . . . . Robot Detection 1 | . . . . . . . . . 1 . . . . . . . . . . . . . Robots Hacked 21 | . . . . . . 3 . . . . . 1 . 1 . . 3 3 5 1 2 2 Non-combat 11 | . . . . . . . . . . . . . . . . . 3 3 2 . 2 1 Combat 10 | . . . . . . 3 . . . . . 1 . 1 . . . . 3 1 . 1 Robot Hacks Applied 21 | . . . . . . 3 . . . . . 1 . 1 . . 4 4 4 . 3 1 parse_system 3 | . . . . . . . . . . . . . . 1 . . . . 2 . . . deconstruct_machine 4 | . . . . . . . . . . . . . . . . . 4 . . . . . find_fabricator 1 | . . . . . . . . . . . . . . . . . . 1 . . . . drop_inventory 5 | . . . . . . . . . . . . . . . . . . 3 2 . . . purge_threat 2 | . . . . . . . . . . . . . . . . . . . . . 2 . reboot_system 1 | . . . . . . 1 . . . . . . . . . . . . . . . . overwrite_iff 2 | . . . . . . 2 . . . . . . . . . . . . . . . . streamctrl_low 1 | . . . . . . . . . . . . . . . . . . . . . 1 . formatsys_low 1 | . . . . . . . . . . . . . . . . . . . . . . 1 formatsys_high 1 | . . . . . . . . . . . . 1 . . . . . . . . . . Relay Couplers Released 20 | . . . . . . 8 . . 5 . . . . . . . . . 5 . 2 . Machine Destruction 17 | . . . . . . 8 . . 5 . . . . . . . . . 2 . 2 . Programmers 3 | . . . . . . . . . . . . . . . . . . . 3 . . . Attached 6 | . . . . . . 1 . . . . . 1 . . . . 1 . . . 2 1 Fabnet Peak Effective % 3 | . . . . . . . . . . . . . . . . . . . 3 1 3 3 Autooverrided 3 | . . . . . . . . . . . . . . . . . . . 1 1 . 1 Robots Rewired 23 | . . . . . . . . . 6 7 . . . 10 . . . . . . . . Allies Hacked 4 | . . . . . . . . . . . . . . . . . . . . . . 4 Hacks Repelled . | . . . . . . . . . . . . . . . . . . . . . . . Allies | -11 -10 -10 -10 -9 -8 -8 -8 -8 -8 -8 -6 -6 -5 -5 -5 -5 -5 -4 -3 -2 -1 -1 -------- Run | Scr Mat Min Exi Min Mat Gar Mat Sto Gar Rec Fac DSF Fac Ext Cet Arc Hub Fac Res Res Acc Com Total Allies 56 | . . . . 3 1 2 1 2 6 7 . 1 . 19 5 . . . 1 1 5 2 Largest Group 22 | . . . . 3 3 1 1 3 6 11 6 6 . 17 22 15 3 . 1 1 2 1 Highest-Rated Group 1069 | . . . . 40 40 16 10 42 84 152 71 127 . 599 1069 797 227 . 84 30 235 84 Highest-Rated Ally 171 | . . . . 16 16 16 10 16 16 27 16 82 . 159 159 159 95 . 84 30 171 84 Total Orders 34 | . . . . 2 . . 2 8 7 . . . . 4 2 . . . . 1 5 3 STAY 15 | . . . . 1 . . 1 4 6 . . . . . 1 . . . . . 1 1 FOLLOW 10 | . . . . 1 . . 1 4 1 . . . . 1 1 . . . . . 1 . AID 3 | . . . . . . . . . . . . . . . . . . . . . 1 2 EXPLORE 2 | . . . . . . . . . . . . . . . . . . . . 1 1 . RETURN 4 | . . . . . . . . . . . . . . 3 . . . . . . 1 . Ally Attacks 510 | . . . . 6 16 5 . . 17 78 . 18 . 78 67 30 81 . 4 4 30 76 Total Damage 10561 | . . . . 82 161 50 . . 159 560 . 303 . 2247 2395 967 2142 . 87 52 515 841 Kills 82 | . . . . 2 3 . . . 3 18 . 1 . 16 14 8 13 . 1 . 2 1 Allies Corrupted 3 | . . . . . . . . . . . . . . . . . . . . . 1 2 Allies Melted . | . . . . . . . . . . . . . . . . . . . . . . . Intel | -11 -10 -10 -10 -9 -8 -8 -8 -8 -8 -8 -6 -6 -5 -5 -5 -5 -5 -4 -3 -2 -1 -1 ------- Run | Scr Mat Min Exi Min Mat Gar Mat Sto Gar Rec Fac DSF Fac Ext Cet Arc Hub Fac Res Res Acc Com Robot Analysis Total 5 | . 1 . . . 4 . . . . . . . . . . . . . . . . . Derelict Logs Recovered 2 | . . 1 . 1 . . . . . . . . . . . . . . . . . . Drone Launches 75 | . . . . . . . . . . . . . . 6 . . . . . 1 26 42 Drone Recoveries 40 | . . . . . . . . . . . . . . 5 . . . . . 1 26 8 Exploration | -11 -10 -10 -10 -9 -8 -8 -8 -8 -8 -8 -6 -6 -5 -5 -5 -5 -5 -4 -3 -2 -1 -1 ------------- Run | Scr Mat Min Exi Min Mat Gar Mat Sto Gar Rec Fac DSF Fac Ext Cet Arc Hub Fac Res Res Acc Com Turns Passed 19221 | 3 1629 1400 782 582 1868 1204 159 1946 1617 472 335 284 362 1387 367 85 507 1432 687 762 668 683 Spaces Moved 8621 | 1 708 565 289 315 751 620 91 648 695 229 217 154 209 716 198 42 170 617 374 331 294 387 Core 213 | . . . . . . . . . . . . . . . . . . . . . . 213 Treads 3767 | 1 708 565 289 38 . . . 111 . . . . . . 53 42 170 617 374 331 294 174 Legs . | . . . . . . . . . . . . . . . . . . . . . . . Wheels 4641 | . . . . 277 751 620 91 537 695 229 217 154 209 716 145 . . . . . . . Hover . | . . . . . . . . . . . . . . . . . . . . . . . Flight . | . . . . . . . . . . . . . . . . . . . . . . . Fastest Speed 50 | 160 160 240 240 140 140 155 155 150 155 155 135 135 150 150 135 160 160 160 148 148 148 50 Average Speed 171 | 160 184 240 269 174 153 155 155 208 204 155 135 135 150 150 152 160 160 160 153 148 153 100 Slowest Speed 330 | 160 240 240 320 320 155 155 155 330 205 155 135 135 150 150 160 160 160 163 160 148 158 270 Overloaded Moves . | . . . . . . . . . . . . . . . . . . . . . . . Propulsion Burnouts . | . . . . . . . . . . . . . . . . . . . . . . . Robots Hopped . | . . . . . . . . . . . . . . . . . . . . . . . Cave-ins Triggered . | . . . . . . . . . . . . . . . . . . . . . . . Exploration Rate (%) 46 | 2 96 98 70 64 69 58 7 57 60 46 7 82 8 87 78 63 17 19 15 16 14 25 Regions Visited 22 Branch Regions 10 Pre-discovered Areas 7 | . 1 2 1 1 . . . . . 2 . . . . . . . . . . . . Known Exits Taken 7 | . 1 . . . 1 . 1 1 . . 1 . . . . . . . 1 1 . . Unknown Exits Taken 12 | 1 . 1 1 1 . . . . . 1 . . 1 1 1 1 1 1 . . 1 . Scrap Searched 2 | . . 1 . 1 . . . . . . . . . . . . . . . . . . Spaces Dug 49 | . . . . 1 7 . 1 1 6 . . . 1 . . . 1 1 1 17 5 7 Terrain Destroyed 526 | . . 11 . 7 52 40 1 55 21 2 . 7 41 . . 3 49 25 5 25 127 55 Melee 18 | . . . . . 7 . 1 1 . . . . 1 . . . . 1 1 6 . . Projectile 124 | . . . . 1 . . . 33 . 2 . . . . . 3 24 18 . 19 8 16 AOE 381 | . . 11 . 6 45 40 . 21 21 . . 7 40 . . . 25 6 4 . 118 37 Terrain Rammed . | . . . . . . . . . . . . . . . . . . . . . . . Walls Destroyed . | . . . . . . . . . . . . . . . . . . . . . . . Machines Disabled . | . . . . . . . . . . . . . . . . . . . . . . . Actions | -11 -10 -10 -10 -9 -8 -8 -8 -8 -8 -8 -6 -6 -5 -5 -5 -5 -5 -4 -3 -2 -1 -1 --------- Run | Scr Mat Min Exi Min Mat Gar Mat Sto Gar Rec Fac DSF Fac Ext Cet Arc Hub Fac Res Res Acc Com Total 11928 | 2 933 591 295 342 1347 809 107 1061 822 342 247 204 240 1008 264 57 344 964 449 505 434 561 Wait 1756 | . 137 10 . 15 470 62 4 276 40 6 3 . 13 60 33 15 130 258 9 91 66 58 Move 8600 | . 707 564 288 314 751 619 90 647 694 228 216 153 208 715 197 41 169 616 373 330 293 387 Hop . | . . . . . . . . . . . . . . . . . . . . . . . Pick Up 106 | . 18 2 2 2 14 3 4 4 4 1 2 6 3 8 5 . . 9 8 5 3 3 Fast Attach 56 | . 4 1 . 1 2 1 1 5 . 1 . 6 . 2 5 . . 5 7 7 5 3 Attach 52 | . . . . . 8 1 . 2 2 . 3 2 2 . 4 . 1 5 4 4 4 10 Detach 18 | . 1 . . 1 1 . . 1 1 . . 3 . . 3 . . 2 1 1 1 2 Swap 163 | 2 6 1 2 5 18 10 3 11 11 1 1 8 4 12 2 . 13 12 12 13 12 4 Drop 118 | . 10 3 3 2 13 2 4 5 3 1 . 10 1 9 13 . . 6 8 6 6 13 Fire 516 | . 48 9 . 2 63 33 . 72 26 2 1 14 8 5 2 1 31 43 16 40 38 62 Melee 68 | . . . . . 7 6 1 9 10 . 5 1 1 6 . . . 1 11 6 3 1 Ram 5 | . . . . . . . . 1 . . . . . . . . . . . . . 4 Kick . | . . . . . . . . . . . . . . . . . . . . . . . Crush 24 | . 2 1 . . . . . . . . . . . . . . . 3 . 2 3 13 Escape Stasis 126 | . . . . . . 72 . . 6 . 16 . . 32 . . . . . . . . Rewire 288 | . . . . . . . . . 25 102 . 1 . 159 . . . . . . . 1 Trap 32 | . . . . . . . . 28 . . . . . . . . . 4 . . . . Miscellaneous . | . . . . . . . . . . . . . . . . . . . . . . . Route ------- -11/Scrapyard -10/Materials (discovered 4 exits: [*Mat x3] / *Min) -10/Mines (discovered 3 exits: [*Mat x2] / *Exi) -10/Exiles -9/Mines (discovered 2 exits: *Mat x2) -8/Materials (discovered 4 exits: [*Fac x2] / *Sto / Gar) -8/Garrison (discovered 3 exits: *Mat x3) -8/Materials (discovered 2 exits: *Sto x2) -8/Storage (discovered 2 exits: Rec / Gar) -8/Garrison (discovered 2 exits: *Rec x2) -8/Recycling -6/Factory (discovered 2 exits: [*Low] / DSF) -6/DSF -5/Factory -5/Extension (discovered 2 exits: *Fac / *Cet) -5/Cetus (discovered 2 exits: *Fac / *Arc) -5/Archives -5/Hub_04(d) -4/Factory -3/Research (discovered 3 exits: *Res x3) -2/Research (discovered 3 exits: *Acc x3) -1/Access -1/Command History --------- Turn | Location | Event 4 | -11/Scrapyard | Discovered new exit (range 0) 4 | -11/Scrapyard | Entered Materials 205 | -10/Materials | Central database locked down 305 | -10/Materials | Discovered new exit (range 15) 310 | -10/Materials | Build established: Mutant 494 | -10/Materials | Discovered new exit (range 16) 739 | -10/Materials | Repaired Lgt. Treads 1291 | -10/Materials | Discovered new exit (range 12) 1460 | -10/Materials | Identified exit to Mines 1633 | -10/Materials | Entered Mines 1718 | -10/Mines | Learned location of Storage (-8) 1806 | -10/Mines | Received a Rocket Launcher from a helpful Derelict 1993 | -10/Mines | Deemed a non-threat by the Exiles lab entrance 2298 | -10/Mines | Discovered new exit (range 14) 2563 | -10/Mines | Discovered new exit (range 14) 2648 | -10/Mines | Found the Drone Emporium 2660 | -10/Mines | Found Prototype Device 2660 | -10/Mines | Identified Splice Drone Bay 3023 | -10/Mines | Discovered new exit (range 5) 3033 | -10/Mines | Entered Exiles 3098 | -10/Exiles | Met 8R-AWN 3143 | -10/Exiles | Met EX-HEX 3278 | -10/Exiles | Met EX-DEC 3323 | -10/Exiles | Learned location of Zion (-6) 3369 | -10/Exiles | Met EX-BIN 3403 | -10/Exiles | Aligned with FarCom system 3405 | -10/Exiles | Given EX-Vault access code 3460 | -10/Exiles | Opened EX-Vault 3481 | -10/Exiles | Found Army-in-a-Box 3553 | -10/Exiles | Warned to stay clear of 0b10 Research branches 3777 | -10/Exiles | Discovered new exit (range 14) 3815 | -10/Exiles | Left Exiles lab with Army-in-a-Box 3815 | -10/Exiles | Entered Mines 3922 | -9/Mines | Assembled infested the area 4010 | -9/Mines | Assisted by bots powering up and referring to "LRC-V3" 4243 | -9/Mines | Discovered new exit (range 8) 4314 | -9/Mines | Joined a pair of Derelicts in attacking an 0b10 outpost 4379 | -9/Mines | Discovered new exit (range 10) 4397 | -9/Mines | Entered Materials 4397 | -8/Materials | Accompanied by 3 allies 4397 | -8/Materials | Evolved 4 slots: Propulsion x1, Utility x3 4556 | -8/Materials | Destroyed 7 combat bots 5025 | -8/Materials | Discovered new exit (range 15) 5130 | -8/Materials | Discovered new exit (range 15) 5555 | -8/Materials | Repaired Hrd. Heavy Armor Plating 5723 | -8/Materials | Discovered new exit (range 8) 6241 | -8/Materials | Identified exit to Garrison 6265 | -8/Materials | Entered Garrison 6265 | -8/Garrison | Accompanied by 1 ally 6343 | -8/Garrison | Triggered checkpoint 6354 | -8/Garrison | Triggered checkpoint 6389 | -8/Garrison | Destroyed 12 combat bots 6449 | -8/Garrison | Discovered new exit (range 11) 6597 | -8/Garrison | Discovered new exit (range 11) 6714 | -8/Garrison | Triggered checkpoint 6784 | -8/Garrison | Discovered new exit (range 11) 6807 | -8/Garrison | Installed Relay Interface Framework 6906 | -8/Garrison | Triggered checkpoint 7089 | -8/Garrison | Garrison Relay disabled 7304 | -8/Garrison | Triggered checkpoint 7403 | -8/Garrison | Garrison Relay disabled 7469 | -8/Garrison | Entered Materials 7469 | -8/Materials | Discovered new exit (range 14) 7587 | -8/Materials | Identified exit to Storage 7628 | -8/Materials | Entered Storage 7628 | -8/Storage | Accompanied by 1 ally 8306 | -8/Storage | Garrison activated, responded to threat 8760 | -8/Storage | Discovered new exit (range 15) 8778 | -8/Storage | Found Prototype Processor 9410 | -8/Storage | Identified exit to Garrison 9451 | -8/Storage | Repaired Arm. Treads 9553 | -8/Storage | Hacking Suite fried by hacking feedback 9574 | -8/Storage | Entered Garrison 9574 | -8/Garrison | Accompanied by 3 allies 9585 | -8/Garrison | Expanded RIF knowledge: Robot Detection 9633 | -8/Garrison | Identified Exp. Targeting Computer 9647 | -8/Garrison | Triggered checkpoint 9678 | -8/Garrison | Triggered checkpoint 9702 | -8/Garrison | Triggered checkpoint 10026 | -8/Garrison | Triggered checkpoint 10027 | -8/Garrison | Triggered checkpoint 10159 | -8/Garrison | Discovered new exit (range 10) 10430 | -8/Garrison | Discovered new exit (range 15) 10466 | -8/Garrison | Triggered checkpoint 10526 | -8/Garrison | Garrison Relay disabled 10612 | -8/Garrison | Triggered checkpoint 10825 | -8/Garrison | Build established: Bothacker-Mutant 11190 | -8/Garrison | System corruption reached 10% 11191 | -8/Garrison | Entered Recycling 11191 | -8/Recycling | Accompanied by 4 allies 11233 | -8/Recycling | Spotter reported a threat 11269 | -8/Recycling | Spotter reported a threat 11334 | -8/Recycling | Spotter reported a threat 11454 | -8/Recycling | Spotter reported a threat 11468 | -8/Recycling | Spotter reported a threat 11468 | -8/Recycling | Spotter reported a threat 11488 | -8/Recycling | Spotter reported a threat 11488 | -8/Recycling | Spotter reported a threat 11507 | -8/Recycling | Spotter reported a threat 11521 | -8/Recycling | Spotter reported a threat 11534 | -8/Recycling | Spotter reported a threat 11579 | -8/Recycling | Spotter reported a threat 11588 | -8/Recycling | Spotter reported a threat 11620 | -8/Recycling | Discovered new exit (range 16) 11622 | -8/Recycling | Build established: Commander-Mutant 11629 | -8/Recycling | Spotter reported a threat 11629 | -8/Recycling | Spotter reported a threat 11629 | -8/Recycling | Spotter reported a threat 11663 | -8/Recycling | Entered Factory 11663 | -6/Factory | Accompanied by 6 allies 11663 | -6/Factory | Evolved 4 slots: Propulsion x1, Utility x2, Weapon x1 11869 | -6/Factory | Discovered new exit (range 15) 11995 | -6/Factory | Identified exit to DSF 11998 | -6/Factory | Entered DSF 11998 | -6/DSF | Accompanied by 6 allies 12024 | -6/DSF | Additional patrols routed to DSF 12168 | -6/DSF | Discovered new exit (range 15) 12282 | -6/DSF | Entered Factory 12282 | -5/Factory | Evolved 2 slots: Power x1, Weapon x1 12632 | -5/Factory | Discovered new exit (range 10) 12644 | -5/Factory | Entered Extension 12914 | -5/Extension | Build established: Scavenger-Tank 12958 | -5/Extension | Rescued a captive Derelict 12959 | -5/Extension | Rescued a captive Derelict 12982 | -5/Extension | Rescued a captive Derelict 13006 | -5/Extension | Rescued a captive Derelict 13043 | -5/Extension | Rescued A7 13075 | -5/Extension | Rescued a captive Derelict 13236 | -5/Extension | Spotted B-75 Beast 13251 | -5/Extension | Spotted B-75 Beast 13267 | -5/Extension | Allies destroyed B-75 Beast 13276 | -5/Extension | Allies destroyed B-75 Beast 13941 | -5/Extension | Rescued a captive Derelict 13955 | -5/Extension | Rescued a captive Derelict 13991 | -5/Extension | Discovered new exit (range 10) 13995 | -5/Extension | Discovered new exit (range 6) 14031 | -5/Extension | Entered Cetus 14031 | -5/Cetus | Accompanied by 17 allies (A7) 14036 | -5/Cetus | Acquired a Cetus Manufacturing Module code from A7 14051 | -5/Cetus | Spotted Cetus Guard 14051 | -5/Cetus | Spotted Cetus Guard 14053 | -5/Cetus | Spotted Cetus Guard 14053 | -5/Cetus | Spotted Cetus Guard 14056 | -5/Cetus | Allies destroyed Cetus Guard 14056 | -5/Cetus | Allies destroyed Cetus Guard 14065 | -5/Cetus | Allies destroyed Cetus Guard 14131 | -5/Cetus | Started Cetus Manufacturing Module 14148 | -5/Cetus | Escorted A7 to Cetus Mainframe 14156 | -5/Cetus | Manufactured an Enhanced Grunt 14181 | -5/Cetus | Manufactured an Enhanced Grunt 14184 | -5/Cetus | Build established: Commander-Tank 14206 | -5/Cetus | Manufactured an Enhanced Grunt 14231 | -5/Cetus | Manufactured an Enhanced Grunt 14233 | -5/Cetus | Discovered new exit (range 15) 14256 | -5/Cetus | Manufactured an Enhanced Grunt 14260 | -5/Cetus | Spotted Cetus Guard 14260 | -5/Cetus | Spotted Cetus Guard 14261 | -5/Cetus | Spotted Cetus Guard 14262 | -5/Cetus | Spotted Cetus Guard 14279 | -5/Cetus | Allies destroyed Cetus Guard 14281 | -5/Cetus | Allies destroyed Cetus Guard 14283 | -5/Cetus | Allies destroyed Cetus Guard 14284 | -5/Cetus | Allies destroyed Cetus Guard 14302 | -5/Cetus | Discovered new exit (range 15) 14310 | -5/Cetus | Met Revision 17 14398 | -5/Cetus | Entered Archives 14398 | -5/Archives | Accompanied by 15 allies (A7) 14403 | -5/Archives | Received a hacking code to weaken MAIN.C 14420 | -5/Archives | Met Zhirov 14426 | -5/Archives | Reinforcements dispatched to Archives 14439 | -5/Archives | Read partially decrypted archive contents 14442 | -5/Archives | Discovered new exit (range 15) 14471 | -5/Archives | Reinforcements dispatched to Archives 14483 | -5/Archives | Entered Hub_04(d) 14483 | -5/Hub_04(d) | Accompanied by 3 allies 14483 | -5/Hub_04(d) | Discovered new exit (range 11) 14783 | -5/Hub_04(d) | First assault squad dispatched 14915 | -5/Hub_04(d) | Network Hub disabled 14959 | -5/Hub_04(d) | Spotted Lightning 14960 | -5/Hub_04(d) | Spotted Lightning 14965 | -5/Hub_04(d) | Spotted Lightning 14990 | -5/Hub_04(d) | Entered Factory 14990 | -4/Factory | Evolved 2 slots: Propulsion x2 15085 | -4/Factory | Repaired Hrd. Heavy Armor Plating 15385 | -4/Factory | Build established: Scavenger-Tank 15887 | -4/Factory | Spotted B-86 Titan 15960 | -4/Factory | Destroyed B-86 Titan 16403 | -4/Factory | Discovered new exit (range 7) 16422 | -4/Factory | Entered Research 16422 | -3/Research | Evolved 2 slots: Utility x2 16451 | -3/Research | Lost 3 parts (1p2u) 16489 | -3/Research | Garrison activated, responded to threat 16622 | -3/Research | Revision forces began assault on 0b10 16649 | -3/Research | Met up with Revision 17++ 16918 | -3/Research | Identified exit to Research 17109 | -3/Research | Entered another Research area 17109 | -2/Research | Evolved 2 slots: Utility x2 17598 | -2/Research | Identified exit to Access 17871 | -2/Research | Entered Access 17871 | -1/Access | Evolved 2 slots: Utility x2 18278 | -1/Access | Garrison activated, responded to threat 18331 | -1/Access | Destroyed 7 combat bots 18344 | -1/Access | Spotted B-99 Colossus 18530 | -1/Access | Discovered new exit (range 7) 18539 | -1/Access | Entered Command 18826 | -1/Command | System corruption reached 10% 18962 | -1/Command | Spotted M Guard 18964 | -1/Command | Spotted M Guard 18964 | -1/Command | Spotted Combat Programmer 18993 | -1/Command | Spotted Combat Programmer 19010 | -1/Command | System corruption reached 30% 19014 | -1/Command | Destroyed Combat Programmer 19053 | -1/Command | Lost 12 parts (3n3u6w) 19056 | -1/Command | Destroyed Combat Programmer 19088 | -1/Command | Lost 3 parts (1n2u) 19172 | -1/Command | Core integrity fell below 50% 19203 | -1/Command | Core integrity fell below 20% 19220 | -1/Command | Spotted Alpha 7 19220 | -1/Command | Spotted Striker 19220 | -1/Command | Spotted Executioner 19220 | -1/Command | Spotted Executioner 19220 | -1/Command | Spotted Alpha 7 19220 | -1/Command | Spotted Striker 19220 | -1/Command | Spotted Executioner 19220 | -1/Command | Spotted Executioner 19222 | -1/Command | Destroyed by Striker with Compact Linear Accelerator Last Messages --------------- 19163_ Adv. Target Analyzer severed. 19163_ Slammed into C-57 Dissector. 19174_ Connecting with Terminal... 19176_ System corrupted: Matter fused (-10). 19180_ Door malfunctions. 19187_ Slammed into C-57 Dissector. 19195_ System corrupted: Substantial component data lost. 19195_ Slammed into P-80 Master. 19196_ Biometal Heavy Treads destroyed. 19196_ Slammed into P-80 Master. 19200_ C-57 Dissector destroyed. 19202_ G-73 Enforcer destroyed. 19202_ Micro-nuke Launcher destroyed. 19202_ Destroyed Micro-nuke Launcher. 19204_ The unstable cave ceiling collapses. 19205_ Acquired Adv. Surge Thruster. 19205_ Adv. Surge Thruster destroyed. 19215_ System corrupted: Substantial component data lost. 19221_ Knocked back. 19222_ Acquired 7 matter. Map ----- +----------------------------------------------------+ | | | | | | | | | | | | | | | | | | | | | | | | | | | ????????????????????????????????????#########????? | | ???????????????????????????????????? #????? | | ???????????????????????????????????? |= #??### | | ????????????????????#############??# = #??# " | | ????????????????????#"""""""""""#??# #??#"" | | ??????????########### """"T""" #### ####"" | | ??????????# + ## | | ??????????+ # ## * | | ??????????# # ## | | ??????????+ [ + / | | ??????????###+##+## ##+####### | | ??????????# # % | | ??????????# + @ | | #####???+## ######## p | | ??# ## """ #??????# g | | #?#h## """" #??????# ############+#+##### | | #?# ## """" #??????# #?????# # | | #?#h## T"" #??????#////#?????# # | | #?# ## #?????#^^^^K^#????# # | | #?# ## #?????#7K^^ 7#????# "" # | | ### ## #????# ^^^^^^ ????# "" | | + #????##^^^^^ ##???# "" # | | ####+#####????? E ^^^^ ????# "Y "" | | # #??# ?????????##^ ^ E##???# "" """" # | | # #??#Y?????????? ^^^^ ^ ????# "" """" # | | # #### #?????????#E ^^^E#????# "" "" # | | # #????????? ^ ^ ????# # | | # #?????????#^ ^^^#????? # | | # #???????BB BB???############# | | # #???????BB BB???????????????? | | # #????????? ?????????????????? | | + *|! +???????????"""""??????????????????? | | # *!! #??????????????????????????????????? | | # *! #??????????????????????????????????? | | #??????????????????????????????????? | | +??????????????????????????????????? | | #??????????????????????????????????? | +----------------------------------------------------+ Best States ------------- Heat Dissipation 85 Energy Generation 45 Energy Capacity 575 Matter Stores 300 Matter Capacity 300 Sight Range 23 Terrain Scan Density 10 Armor Coverage 2550 Resistance: KI 20 Weapon Shielding 90 Evasion (%) 50 Targeting Accuracy 12 Target Analysis 8 Core Analysis 10 Armor Integrity Analysis 30 Recoil Reduction 6 Kinecelleration 40 Offensive Hacking 10 Relay Coupler Types 2 Relay Coupler Value 48 Item Schematics ----------------- Hrd. Heavy Armor Plating | -8/Materials | Scanalyzed Exp. Weapon Shielding | -4/Factory | Scanalyzed Robot Schematics ------------------ M-28 Smith | -8/Recycling | Hacked Fabricated ------------ Nothing Alien Tech Used ----------------- None Achievements -------------- None Challenges ------------ None Game ------ Seed ReinforcedProcessingDevice Manual? 0 Play Time 02:11:20 Cumulative 997.1 hours Start 2021.11.10 @ 12:14:54 End 2021.11.11 @ 14:39:28 Sessions 5 Manual Loads 0 Difficulty Rogue Special Mode None Game No. 686 Rogue 682 Adventurer 4 Explorer 0 Win Type - Total 106 Types 80/9/7/4/2/0/0/2/2 Lore% 93 Gallery% 98 Achievement% 96 Wizard Run 0 Options --------- ASCII 0 Keyboard 1 Movement Vi Keybinds 0 Fullscreen 0 Font 16/Terminus Map View 76x50 Tactical HUD 1 Map Filters NONE Filters NONE Steam 1 RUN: 364d9db8-03ab-4613-85ce-f125e6f4e0f3